[Event "GER-ch Youth U14W 2020"]
[Site "Willingen"]
[Date "2020.10.24"]
[Round "7.10"]
[White "Foos, Vanessa"]
[Black "Pikki, Daria"]
[Result "1-0"]
[ECO "C51"]
[WhiteElo "1328"]
[BlackElo "1545"]
[Annotator "NA RC"]
[PlyCount "97"]
[EventDate "2020.10.20"]
[EventType "swiss"]
[EventRounds "7"]
[EventCountry "GER"]
[SourceTitle "playchess.com"]
[Source "ChessBase"]
[SourceQuality "1"]
[TimeControl "40/5400+30:1800+30"]

1. e4 {[%emt 0:00:00]} e5 {[%emt 0:00:00]} 2. Nf3 {[%emt 0:00:00]} Nc6 {[%emt 0:00:00]} 3. Bc4 {[%emt 0:00:00]} Bc5 {[%emt 0:00:00]} 4. b4 {[%emt 0:00:00]} Bxb4 {[%emt 0:00:00]} 5. c3 {[%emt 0:00:00]} Be7 {[%emt 0:00:00]} 6. d4 {[%emt 0:00:00]} Na5 {[%emt 0:01:03]} 7. Nxe5 {[%emt 0:10:21]} Nxc4 {[%emt 0:00:37]} 8. Nxc4 {[%emt 0:00:10]} d5 {[%emt 0:00:44]} 9. exd5 {[%emt 0:01:32]} Qxd5 {[%emt 0:02:51]} 10. Ne3 {[%emt 0:02:53]} Qc6 {[%emt 0:02:57]} 11. O-O {[%emt 0:04:51]} Bd7 {[%emt 0:06:45]} 12. Qb3 {[%emt 0:01:57]} Nf6 {[%emt 0:05:40]} 13. Re1 {[%emt 0:01:54]} O-O-O {[%emt 0:06:33]} 14. Nd2 {[%emt 0:03:13]} Be6 {[%emt 0:05:20]} 15. Qc2 {[%emt 0:01:15]} Rhe8 {[%emt 0:10:21]} 16. Nf5 {[%emt 0:03:47]} Bb4 {[%emt 0:06:12]} 17. Bb2 {[%emt 0:02:33]} Ba5 {[%emt 0:04:32]} 18. Ne3 {[%emt 0:01:38]} Rg8 {[%emt 0:03:48]} 19. Rec1 {[%emt 0:03:06]} Nd5 {[%emt 0:04:15]} 20. Nxd5 {[%emt 0:02:34]} Bxd5 {[%emt 0:00:14]} 21. Qf5+ {[%emt 0:00:22]} Kb8 {[%emt 0:03:46]} 22. f3 {[%emt 0:00:43]} g5 {[%emt 0:01:49]} 23. Ne4 {[%emt 0:10:56]} g4 {[%emt 0:03:40]} 24. Nf6 {[%emt 0:00:35]} gxf3 {[%emt 0:01:22]} 25. Nxg8 {[%emt 0:00:35]} Rxg8 {[%emt 0:01:50]} 26. g3 {[%emt 0:00:51]} f2+ {[%emt 0:01:53]} 27. Kxf2 {[%emt 0:04:19]} Rg6 {[%emt 0:02:30]} 28. Kg1 {[%emt 0:03:22]} Bh1 {[%emt 0:04:03]} 29. Qf2 {[%emt 0:04:52]} f5 {[%emt 0:03:20]} 30. c4 {[%emt 0:01:52]} Bb6 {[%emt 0:01:27]} 31. c5 {[%emt 0:02:03]} Ba5 {[%emt 0:05:09]} 32. Rc2 {[%emt 0:03:30]} Be4 {[%emt 0:01:26]} 33. Re2 {[%emt 0:00:54]} a6 {[%emt 0:01:32]} 34. Rc1 {[%emt 0:02:51]} Qb5 {[%emt 0:04:03]} 35. Bc3 {[%emt 0:01:19]} Bxc3 {[%emt 0:00:42]} 36. Rxc3 {[%emt 0:00:26]} Qb1+ {[%emt 0:00:40]} 37. Re1 {[%emt 0:00:34]} Qb4 {[%emt 0:00:33]} 38. Rb3 {[%emt 0:02:16]} Qa4 {[%emt 0:00:37]} 39. Qb2 {[%emt 0:01:54]} Bd5 {[%emt 0:02:01]} 40. Rb4 {[%emt 0:00:46]} Qc6 {[%emt 0:01:34]} 41. Re5 {[%emt 0:34:01]} a5 {[%emt 0:31:58]} 42. Rb5 {[%emt 0:01:14]} f4 {[%emt 0:01:51]} 43. Qe2 {[%emt 0:01:38]} fxg3 {[%emt 0:00:55]} 44. Re8+ {[%emt 0:00:27]} Ka7 {[%emt 0:00:19]} 45. Rxa5+ {[%emt 0:00:20]} Qa6 {[%emt 0:00:06]} 46. Rxa6+ {[%emt 0:00:46]} bxa6 {[%emt 0:00:24]} 47. Qb2 {[%emt 0:03:33]} gxh2+ {[%emt 0:00:15]} 48. Kxh2 {[%emt 0:00:11]} Rh6+ {[%emt 0:00:28]} 49. Kg3 {[%emt 0:00:11]} 1-0

[Event "GER-ch Youth U14W 2020"]
[Site "Willingen"]
[Date "2020.10.24"]
[Round "7.11"]
[White "Sinner, Joselyne"]
[Black "Cordes, Jule"]
[Result "1-0"]
[ECO "B20"]
[WhiteElo "1414"]
[BlackElo "1718"]
[Annotator "NA RC"]
[PlyCount "99"]
[EventDate "2020.10.20"]
[EventType "swiss"]
[EventRounds "7"]
[EventCountry "GER"]
[SourceTitle "playchess.com"]
[Source "ChessBase"]
[SourceQuality "1"]
[TimeControl "40/5400+30:1800+30"]

1. e4 {[%emt 0:00:00]} c5 {[%emt 0:00:00]} 2. b3 {[%emt 0:00:00]} e6 {[%emt 0:02:23]} 3. Bb2 {[%emt 0:05:10]} Nc6 {[%emt 0:01:11]} 4. Nf3 {[%emt 0:00:31]} Nf6 {[%emt 0:02:41]} 5. e5 {[%emt 0:10:30]} Ng8 {[%emt 0:02:00]} 6. Nc3 {[%emt 0:08:41]} Nh6 {[%emt 0:02:34]} 7. Ne4 {[%emt 0:06:16]} Nf5 {[%emt 0:05:33]} 8. g3 {[%emt 0:12:29]} d5 {[%emt 0:04:20]} 9. exd6 {[%emt 0:02:56]} Bxd6 {[%emt 0:05:31]} 10. Bb5 {[%emt 0:16:13]} O-O {[%emt 0:06:07]} 11. Bxc6 {[%emt 0:02:04]} bxc6 {[%emt 0:00:10]} 12. Nxd6 {[%emt 0:00:15]} Qxd6 {[%emt 0:01:25]} 13. d3 {[%emt 0:01:35]} Nd4 {[%emt 0:03:53]} 14. O-O {[%emt 0:04:02]} e5 {[%emt 0:06:23]} 15. Nd2 {[%emt 0:02:05]} Bh3 {[%emt 0:13:22]} 16. Re1 {[%emt 0:00:22]} Qd5 {[%emt 0:02:04]} 17. f3 {[%emt 0:01:42]} Rae8 {[%emt 0:00:37]} 18. c3 {[%emt 0:06:12]} Nf5 {[%emt 0:00:41]} 19. Ne4 {[%emt 0:00:21]} Nh6 {[%emt 0:02:48]} 20. Bc1 {[%emt 0:01:05]} Rd8 {[%emt 0:09:16]} 21. Bxh6 {[%emt 0:00:54]} f5 {[%emt 0:08:06]} 22. Ng5 {[%emt 0:02:14]} Bg4 {[%emt 0:03:53]} 23. fxg4 {[%emt 0:00:17]} gxh6 {[%emt 0:01:01]} 24. Nh3 {[%emt 0:00:21]} f4 {[%emt 0:03:48]} 25. gxf4 {[%emt 0:01:05]} exf4 {[%emt 0:00:06]} 26. Nf2 {[%emt 0:01:17]} f3 {[%emt 0:00:18]} 27. Re3 {[%emt 0:01:32]} Rf4 {[%emt 0:01:20]} 28. Re4 Rf6 {[%emt 0:01:21]} 29. Qe1 {[%emt 0:03:41]} Rdf8 {[%emt 0:00:48]} 30. Re8 {[%emt 0:02:02]} Rf4 {[%emt 0:03:00]} 31. Qe6+ {[%emt 0:01:06]} Qxe6 {[%emt 0:00:38]} 32. Rxe6 {[%emt 0:00:05]} R4f6 {[%emt 0:00:12]} 33. Rxf6 {[%emt 0:00:14]} Rxf6 {[%emt 0:00:07]} 34. Ne4 {[%emt 0:00:31]} Rg6 {[%emt 0:02:56]} 35. h3 {[%emt 0:01:02]} h5 {[%emt 0:00:12]} 36. Kf2 {[%emt 0:00:49]} hxg4 {[%emt 0:00:14]} 37. hxg4 {[%emt 0:00:08]} Kf7 {[%emt 0:00:45]} 38. Kxf3 {[%emt 0:00:12]} Ke7 {[%emt 0:00:25]} 39. Re1 {[%emt 0:00:50]} Kd7 {[%emt 0:00:18]} 40. Nxc5+ {[%emt 0:00:11]} Kd6 {[%emt 0:00:55]} 41. d4 {[%emt 0:31:16]} Rf6+ {[%emt 0:30:30]} 42. Ke4 {[%emt 0:00:50]} Rf2 {[%emt 0:00:35]} 43. a4 {[%emt 0:00:23]} Rf8 {[%emt 0:00:41]} 44. Kd3 {[%emt 0:00:12]} Rf3+ {[%emt 0:00:50]} 45. Re3 {[%emt 0:00:15]} Rf4 {[%emt 0:00:15]} 46. Re6+ {[%emt 0:00:48]} Kc7 {[%emt 0:00:24]} 47. Re7+ {[%emt 0:00:48]} Kb8 {[%emt 0:00:26]} 48. Rxh7 {[%emt 0:00:39]} Rxg4 {[%emt 0:00:14]} 49. Nd7+ {[%emt 0:00:22]} Ka8 {[%emt 0:00:30]} 50. Ne5 {[%emt 0:00:28]} 1-0

[Event "GER-ch Youth U14W 2020"]
[Site "Willingen"]
[Date "2020.10.24"]
[Round "7.12"]
[White "Deák-Sala, Emília"]
[Black "Lorenz, Anouk"]
[Result "1-0"]
[ECO "B35"]
[WhiteElo "1641"]
[BlackElo "1504"]
[Annotator "NA RC"]
[PlyCount "39"]
[EventDate "2020.10.20"]
[EventType "swiss"]
[EventRounds "7"]
[EventCountry "GER"]
[SourceTitle "playchess.com"]
[Source "ChessBase"]
[SourceQuality "1"]
[TimeControl "40/5400+30:1800+30"]

1. e4 {[%emt 0:00:00]} c5 {[%emt 0:00:00]} 2. Nf3 {[%emt 0:00:00]} g6 {[%emt 0:00:00]} 3. d4 {[%emt 0:00:00]} cxd4 {[%emt 0:00:00]} 4. Nxd4 {[%emt 0:00:00]} Bg7 {[%emt 0:00:08]} 5. Be3 {[%emt 0:00:00]} Nc6 {[%emt 0:00:16]} 6. Nc3 {[%emt 0:00:00]} Nf6 {[%emt 0:00:08]} 7. Bc4 {[%emt 0:00:05]} O-O {[%emt 0:08:32]} 8. Bb3 {[%emt 0:00:53]} d6 {[%emt 0:08:07]} 9. f3 {[%emt 0:00:10]} e6 {[%emt 0:01:19]} 10. Qd2 {[%emt 0:01:14]} Nxd4 {[%emt 0:09:58]} 11. Bxd4 {[%emt 0:00:41]} b6 {[%emt 0:02:58]} 12. O-O-O {[%emt 0:02:06]} Bb7 {[%emt 0:10:35]} 13. Be3 {[%emt 0:03:39]} Ne8 {[%emt 0:14:24]} 14. h4 {[%emt 0:08:05]} h5 {[%emt 0:12:40]} 15. g4 {[%emt 0:00:23]} Nf6 {[%emt 0:02:44]} 16. Qh2 {[%emt 0:03:36]} hxg4 {[%emt 0:03:02]} 17. Rxd6 {[%emt 0:05:54]} Qb8 {[%emt 0:02:20]} 18. h5 {[%emt 0:06:11]} g3 {[%emt 0:02:38]} 19. Qxg3 {[%emt 0:00:12]} e5 {[%emt 0:03:37]} 20. Rxf6 {[%emt 0:01:08]} 1-0

[Event "GER-ch Youth U14W 2020"]
[Site "Willingen"]
[Date "2020.10.24"]
[Round "7.13"]
[White "Kanno, Clara Yumi"]
[Black "Lieberwirth, Nele"]
[Result "0-1"]
[ECO "C50"]
[WhiteElo "1127"]
[BlackElo "1366"]
[Annotator "NA RC"]
[PlyCount "122"]
[EventDate "2020.10.20"]
[EventType "swiss"]
[EventRounds "7"]
[EventCountry "GER"]
[SourceTitle "playchess.com"]
[Source "ChessBase"]
[SourceQuality "1"]
[TimeControl "40/5400+30:1800+30"]

1. e4 {[%emt 0:00:00]} e5 {[%emt 0:00:00]} 2. Nf3 {[%emt 0:00:00]} Nc6 {[%emt 0:00:00]} 3. Bc4 {[%emt 0:00:00]} Nf6 {[%emt 0:00:00]} 4. d3 {[%emt 0:00:05]} Bc5 {[%emt 0:00:53]} 5. c3 {[%emt 0:00:11]} Qe7 {[%emt 0:01:14]} 6. Bb3 {[%emt 0:03:25]} O-O {[%emt 0:02:57]} 7. O-O {[%emt 0:02:14]} d6 {[%emt 0:07:39]} 8. Re1 {[%emt 0:07:47]} Bg4 {[%emt 0:04:14]} 9. Nbd2 {[%emt 0:03:52]} Rfe8 {[%emt 0:04:26]} 10. Nf1 {[%emt 0:04:55]} Rad8 {[%emt 0:14:03]} 11. h3 {[%emt 0:04:09]} Be6 {[%emt 0:11:09]} 12. Bc2 {[%emt 0:04:55]} Bb6 {[%emt 0:10:44]} 13. Ng3 {[%emt 0:10:50]} d5 {[%emt 0:12:08]} 14. exd5 {[%emt 0:10:16]} Bxd5 {[%emt 0:11:07]} 15. Qe2 {[%emt 0:04:42]} Qd6 {[%emt 0:04:02]} 16. a3 {[%emt 0:11:11]} a5 {[%emt 0:01:50]} 17. Bd2 {[%emt 0:01:31]} Nd7 {[%emt 0:01:49]} 18. c4 {[%emt 0:03:03]} Be6 {[%emt 0:01:45]} 19. Reb1 {[%emt 0:07:37]} e4 {[%emt 0:01:02]} 20. Nxe4 {[%emt 0:02:14]} Qe7 {[%emt 0:01:30]} 21. Qe1 {[%emt 0:02:15]} Nd4 {[%emt 0:00:53]} 22. Nxd4 {[%emt 0:00:53]} Bxd4 {[%emt 0:00:05]} 23. Bxa5 {[%emt 0:01:20]} b6 {[%emt 0:00:45]} 24. Bc3 {[%emt 0:00:51]} Bxc3 {[%emt 0:00:59]} 25. Qxc3 {[%emt 0:00:49]} Bf5 {[%emt 0:00:42]} 26. Re1 {[%emt 0:00:44]} Qh4 {[%emt 0:00:57]} 27. Re3 {[%emt 0:05:40]} Re6 {[%emt 0:01:31]} 28. Rae1 {[%emt 0:01:03]} Rg6 {[%emt 0:01:49]} 29. Ng3 {[%emt 0:04:18]} Qg5 {[%emt 0:02:16]} 30. Re8+ {[%emt 0:01:48]} Rxe8 {[%emt 0:00:29]} 31. Rxe8+ {[%emt 0:00:10]} Nf8 {[%emt 0:00:10]} 32. d4 {[%emt 0:01:05]} Qc1+ {[%emt 0:00:35]} 33. Kh2 {[%emt 0:00:33]} Qxc2 {[%emt 0:00:39]} 34. Qxc2 {[%emt 0:00:39]} Bxc2 {[%emt 0:00:04]} 35. Rc8 {[%emt 0:00:22]} Rd6 {[%emt 0:02:03]} 36. Rxc7 {[%emt 0:00:32]} Rxd4 {[%emt 0:00:42]} 37. Rc8 {[%emt 0:00:22]} g6 {[%emt 0:00:38]} 38. f3 {[%emt 0:00:59]} Rd2 {[%emt 0:00:38]} 39. c5 {[%emt 0:00:45]} bxc5 {[%emt 0:00:19]} 40. Rxc5 {[%emt 0:00:05]} Ne6 {[%emt 0:00:09]} 41. Re5 {[%emt 0:30:44]} Nf4 {[%emt 0:01:45]} 42. Ne4 {[%emt 0:00:00]} Rxg2+ {[%emt 0:07:57]} 43. Kh1 {[%emt 0:00:00]} Bd1 {[%emt 0:04:08]} 44. Ng5 {[%emt 0:00:00]} Rxb2 {[%emt 0:01:42]} 45. Re4 {[%emt 0:00:00]} Nh5 {[%emt 0:07:58]} 46. Rd4 {[%emt 0:00:00]} Rb1 {[%emt 0:01:14]} 47. Kg2 {[%emt 0:00:00]} Rb2+ {[%emt 0:00:46]} 48. Kg1 {[%emt 0:00:00]} Be2 {[%emt 0:01:47]} 49. Re4 {[%emt 0:00:00]} h6 {[%emt 0:01:10]} 50. Nxf7 {[%emt 0:00:00]} Kxf7 {[%emt 0:00:17]} 51. Re3 {[%emt 0:00:00]} Kf6 {[%emt 0:01:19]} 52. a4 {[%emt 0:00:00]} Kf5 {[%emt 0:01:58]} 53. a5 {[%emt 0:00:00]} Kf4 {[%emt 0:00:33]} 54. Ra3 {[%emt 0:00:00]} Bxf3 {[%emt 0:00:31]} 55. Ra1 {[%emt 0:00:00]} Rg2+ {[%emt 0:01:02]} 56. Kf1 {[%emt 0:00:00]} Ng3+ {[%emt 0:00:08]} 57. Ke1 {[%emt 0:00:00]} Rg1+ {[%emt 0:00:09]} 58. Kf2 {[%emt 0:00:00]} Rxa1 {[%emt 0:00:07]} 59. h4 {[%emt 0:00:00]} Ra2+ {[%emt 0:00:16]} 60. Ke1 {[%emt 0:00:00]} Ke3 {[%emt 0:00:18]} 61. a6 {[%emt 0:00:00]} Ra1# {[%emt 0:00:10]} 0-1